[Event "GER-ch Youth-U10 2022"]
[Site "Willingen"]
[Date "2022.06.09"]
[Round "8.19"]
[White "Moskalenko, Michael"]
[Black "Hagn, Tobias"]
[Result "1/2-1/2"]
[ECO "D19"]
[WhiteElo "1266"]
[BlackElo "1337"]
[Annotator "NA RC COMBH"]
[PlyCount "110"]
[EventDate "2022.06.05"]
[EventType "swiss"]
[EventRounds "11"]
[EventCountry "GER"]
[SourceTitle "playchess.com"]
[Source "ChessBase"]
[SourceQuality "1"]
[TimeControl "40/4500+30:900+30"]

1. d4 {[%emt 0:00:01]} d5 {[%emt 0:00:08]} 2. c4 {[%emt 0:00:04]} c6 {[%emt 0:00:12]} 3. Nf3 {[%emt 0:00:07]} Nf6 {[%emt 0:00:30]} 4. Nc3 {[%emt 0:00:08]} dxc4 {[%emt 0:00:19]} 5. a4 {[%emt 0:00:11]} Bf5 {[%emt 0:00:27]} 6. e3 {[%emt 0:00:13]} e6 {[%emt 0:00:21]} 7. Bxc4 {[%emt 0:00:13]} Bb4 {[%emt 0:01:13]} 8. O-O {[%emt 0:00:17]} O-O {[%emt 0:01:46]} 9. Qe2 {[%emt 0:00:11]} Nbd7 {[%emt 0:02:55]} 10. e4 {[%emt 0:00:21]} Bg4 {[%emt 0:01:25]} 11. e5 {[%emt 0:01:09]} Nd5 {[%emt 0:00:44]} 12. Nxd5 {[%emt 0:00:49]} cxd5 {[%emt 0:01:33]} 13. Bd3 {[%emt 0:00:21]} Qb6 {[%emt 0:05:45]} 14. Bxh7+ {[%emt 0:01:35]} Kh8 {[%emt 0:05:13]} 15. Bd3 {[%emt 0:01:32]} f6 {[%emt 0:03:43]} 16. h3 {[%emt 0:04:01]} Bh5 {[%emt 0:05:09]} 17. Re1 {[%emt 0:02:04]} Bxe1 {[%emt 0:00:33]} 18. Qxe1 {[%emt 0:00:32]} Bxf3 {[%emt 0:00:44]} 19. gxf3 {[%emt 0:00:27]} Qxd4 {[%emt 0:01:38]} 20. Qe2 {[%emt 0:04:22]} Nxe5 {[%emt 0:03:58]} 21. Bc2 {[%emt 0:00:59]} Qc4 {[%emt 0:01:19]} 22. Qd1 {[%emt 0:01:30]} Nxf3+ {[%emt 0:00:26]} 23. Qxf3 {[%emt 0:00:53]} Qxc2 {[%emt 0:00:09]} 24. Qh5+ {[%emt 0:00:26]} Qh7 {[%emt 0:00:13]} 25. Qg4 {[%emt 0:00:12]} Rae8 {[%emt 0:01:08]} 26. Be3 {[%emt 0:00:40]} a6 {[%emt 0:01:22]} 27. Rc1 {[%emt 0:00:59]} f5 {[%emt 0:00:37]} 28. Qg3 {[%emt 0:00:12]} e5 {[%emt 0:01:07]} 29. Qg2 {[%emt 0:00:18]} f4 {[%emt 0:00:54]} 30. Bd2 {[%emt 0:01:17]} f3 {[%emt 0:00:31]} 31. Qg3 {[%emt 0:00:13]} d4 {[%emt 0:01:46]} 32. Rc7 {[%emt 0:02:48]} e4 {[%emt 0:00:51]} 33. Bf4 {[%emt 0:10:16]} Rxf4 {[%emt 0:01:52]} 34. Qxf4 {[%emt 0:01:27]} Qxh3 {[%emt 0:00:10]} 35. Qg5 {[%emt 0:00:44]} Qg2+ {[%emt 0:00:48]} 36. Qxg2 {[%emt 0:00:43]} fxg2 {[%emt 0:00:02]} 37. Kxg2 {[%emt 0:00:10]} e3 {[%emt 0:00:24]} 38. fxe3 {[%emt 0:01:03]} dxe3 {[%emt 0:00:21]} 39. Kf1 {[%emt 0:00:28]} e2+ {[%emt 0:00:45]} 40. Ke1 {[%emt 0:01:25]} Kh7 {[%emt 0:05:36]} 41. Rxb7 {[%emt 0:16:00]} Kh6 {[%emt 0:15:14]} 42. Rd7 {[%emt 0:05:26]} Kh5 {[%emt 0:01:30]} 43. Rxg7 {[%emt 0:02:37]} Rb8 {[%emt 0:00:20]} 44. Rg2 {[%emt 0:02:15]} Rxb2 {[%emt 0:00:23]} 45. Rxe2 {[%emt 0:00:11]} Rb1+ {[%emt 0:00:27]} 46. Kf2 {[%emt 0:00:03]} Ra1 {[%emt 0:00:09]} 47. Re5+ {[%emt 0:00:11]} Kg4 {[%emt 0:00:10]} 48. Ra5 {[%emt 0:01:04]} Kf4 {[%emt 0:00:20]} 49. Rxa6 {[%emt 0:01:49]} Ra2+ {[%emt 0:00:14]} 50. Ke1 {[%emt 0:00:12]} Ke3 {[%emt 0:00:27]} 51. Re6+ {[%emt 0:00:35]} Kd4 {[%emt 0:00:22]} 52. Rd6+ {[%emt 0:00:45]} Kc5 {[%emt 0:00:09]} 53. Ra6 {[%emt 0:00:35]} Kb4 {[%emt 0:00:24]} 54. Kd1 {[%emt 0:00:32]} Rxa4 {[%emt 0:00:55]} 55. Rxa4+ {[%emt 0:00:08]} Kxa4 {[%emt 0:00:09]} 1/2-1/2

[Event "GER-ch Youth-U10 2022"]
[Site "Willingen"]
[Date "2022.06.09"]
[Round "8.20"]
[White "Yao, Haiyang"]
[Black "Hellriegel, Hannes"]
[Result "1-0"]
[ECO "C50"]
[WhiteElo "1098"]
[BlackElo "1335"]
[Annotator "NA RC COMBH"]
[PlyCount "149"]
[EventDate "2022.06.05"]
[EventType "swiss"]
[EventRounds "11"]
[EventCountry "GER"]
[SourceTitle "playchess.com"]
[Source "ChessBase"]
[SourceQuality "1"]
[TimeControl "40/4500+30:900+30"]

1. e4 {[%emt 0:00:01]} e5 {[%emt 0:00:08]} 2. Nf3 {[%emt 0:00:05]} Nc6 {[%emt 0:00:07]} 3. Bc4 {[%emt 0:00:08]} Nf6 {[%emt 0:00:09]} 4. Nc3 {[%emt 0:00:10]} Bc5 {[%emt 0:00:12]} 5. h3 {[%emt 0:00:21]} d6 {[%emt 0:00:12]} 6. d3 {[%emt 0:00:07]} h6 {[%emt 0:00:11]} 7. O-O {[%emt 0:00:08]} g5 {[%emt 0:01:51]} 8. Nh2 {[%emt 0:00:44]} Qe7 {[%emt 0:14:26]} 9. Be3 {[%emt 0:00:15]} Bb6 {[%emt 0:00:53]} 10. a4 {[%emt 0:00:24]} a6 {[%emt 0:00:34]} 11. Bxb6 {[%emt 0:00:05]} cxb6 {[%emt 0:00:15]} 12. Bd5 {[%emt 0:00:37]} Be6 {[%emt 0:06:28]} 13. Bxc6+ {[%emt 0:01:00]} bxc6 {[%emt 0:00:14]} 14. d4 {[%emt 0:00:16]} Rg8 {[%emt 0:05:11]} 15. d5 {[%emt 0:00:52]} Bd7 {[%emt 0:00:58]} 16. Qd2 {[%emt 0:01:08]} c5 {[%emt 0:00:49]} 17. h4 {[%emt 0:02:43]} Qf8 {[%emt 0:02:45]} 18. Nf3 {[%emt 0:02:26]} Qg7 {[%emt 0:01:33]} 19. Rae1 {[%emt 0:02:33]} gxh4 {[%emt 0:02:33]} 20. Nxh4 {[%emt 0:01:07]} Bh3 {[%emt 0:01:55]} 21. f3 {[%emt 0:00:30]} Qg5 {[%emt 0:04:48]} 22. Qxg5 {[%emt 0:01:07]} Rxg5 {[%emt 0:00:26]} 23. Re2 {[%emt 0:00:31]} Nh5 {[%emt 0:02:24]} 24. Rff2 {[%emt 0:00:55]} Bc8 {[%emt 0:00:43]} 25. Kh2 {[%emt 0:00:48]} Bd7 {[%emt 0:03:12]} 26. b3 {[%emt 0:01:42]} Rc8 {[%emt 0:02:02]} 27. Nd1 {[%emt 0:00:41]} b5 {[%emt 0:00:51]} 28. a5 {[%emt 0:00:32]} Rb8 {[%emt 0:00:58]} 29. Ne3 {[%emt 0:00:15]} Ke7 {[%emt 0:02:02]} 30. Nef5+ {[%emt 0:00:54]} Kf8 {[%emt 0:01:55]} 31. Nxd6 {[%emt 0:00:49]} Nf4 {[%emt 0:01:03]} 32. Rd2 {[%emt 0:00:31]} Rh5 {[%emt 0:01:25]} 33. g3 {[%emt 0:01:59]} Ng6 {[%emt 0:01:01]} 34. Ndf5 {[%emt 0:01:44]} Bxf5 {[%emt 0:00:31]} 35. exf5 {[%emt 0:00:27]} Nxh4 {[%emt 0:00:23]} 36. gxh4 {[%emt 0:00:10]} Rxh4+ {[%emt 0:00:21]} 37. Kg3 {[%emt 0:00:48]} Rf4 {[%emt 0:00:28]} 38. Rh2 {[%emt 0:01:10]} Kg7 {[%emt 0:01:10]} 39. d6 {[%emt 0:01:15]} Rd8 {[%emt 0:00:27]} 40. Rd5 {[%emt 0:02:51]} Rxf5 {[%emt 0:01:44]} 41. Rhd2 {[%emt 0:15:18]} c4 {[%emt 0:17:09]} 42. Rc5 {[%emt 0:00:35]} cxb3 {[%emt 0:01:04]} 43. cxb3 {[%emt 0:00:19]} Rf6 {[%emt 0:01:52]} 44. d7 {[%emt 0:00:06]} Re6 {[%emt 0:00:55]} 45. Rc8 {[%emt 0:00:12]} Rg6+ {[%emt 0:02:16]} 46. Kf2 {[%emt 0:00:17]} Rxd7 {[%emt 0:01:25]} 47. Rxd7 {[%emt 0:00:37]} h5 {[%emt 0:00:17]} 48. Rcc7 {[%emt 0:00:16]} Rf6 {[%emt 0:00:18]} 49. Kg3 {[%emt 0:00:15]} Rg6+ {[%emt 0:00:16]} 50. Kh4 {[%emt 0:00:14]} Rf6 {[%emt 0:00:20]} 51. Re7 {[%emt 0:00:33]} Rxf3 {[%emt 0:00:18]} 52. Rxe5 {[%emt 0:00:22]} Kf6 {[%emt 0:00:32]} 53. Ree7 {[%emt 0:00:48]} Rxb3 {[%emt 0:00:38]} 54. Rxf7+ {[%emt 0:00:13]} Ke5 {[%emt 0:00:30]} 55. Ra7 {[%emt 0:00:17]} Rb4+ {[%emt 0:00:19]} 56. Kxh5 {[%emt 0:00:16]} Rc4 {[%emt 0:00:29]} 57. Rxa6 {[%emt 0:01:36]} Rc1 {[%emt 0:00:19]} 58. Rb6 {[%emt 0:00:22]} Rh1+ {[%emt 0:00:10]} 59. Kg6 {[%emt 0:00:13]} Rg1+ {[%emt 0:00:20]} 60. Kh7 {[%emt 0:00:20]} Rh1+ {[%emt 0:02:15]} 61. Kg8 {[%emt 0:00:12]} Rg1+ {[%emt 0:00:31]} 62. Rg7 {[%emt 0:00:17]} Ra1 {[%emt 0:00:18]} 63. Rxb5+ {[%emt 0:00:19]} Kf6 {[%emt 0:00:45]} 64. Rb6+ {[%emt 0:00:18]} Kf5 {[%emt 0:00:10]} 65. a6 {[%emt 0:00:14]} Rc1 {[%emt 0:00:30]} 66. a7 {[%emt 0:00:08]} Rc8+ {[%emt 0:00:08]} 67. Kh7 {[%emt 0:00:07]} Ra8 {[%emt 0:00:19]} 68. Rb8 {[%emt 0:00:10]} Rxa7 {[%emt 0:00:09]} 69. Rxa7 {[%emt 0:00:07]} Kg4 {[%emt 0:00:26]} 70. Rb5 {[%emt 0:00:06]} Kf4 {[%emt 0:00:13]} 71. Ra4+ {[%emt 0:00:05]} Ke3 {[%emt 0:00:16]} 72. Rb3+ {[%emt 0:00:13]} Kd2 {[%emt 0:00:09]} 73. Ra2+ {[%emt 0:00:12]} Kc1 {[%emt 0:00:07]} 74. Rbb2 {[%emt 0:00:11]} Kd1 {[%emt 0:00:11]} 75. Rb1# {[%emt 0:00:04]} 1-0

[Event "GER-ch Youth-U10 2022"]
[Site "Willingen"]
[Date "2022.06.09"]
[Round "8.21"]
[White "Svanidze, Alexander"]
[Black "Classen, Marnin"]
[Result "0-1"]
[ECO "C01"]
[WhiteElo "1348"]
[BlackElo "1168"]
[Annotator "NA RC COMBH"]
[PlyCount "56"]
[EventDate "2022.06.05"]
[EventType "swiss"]
[EventRounds "11"]
[EventCountry "GER"]
[SourceTitle "playchess.com"]
[Source "ChessBase"]
[SourceQuality "1"]
[TimeControl "40/4500+30:900+30"]

1. e4 {[%emt 0:00:01]} e6 {[%emt 0:00:23]} 2. d4 {[%emt 0:00:05]} d5 {[%emt 0:00:07]} 3. exd5 {[%emt 0:00:04]} exd5 {[%emt 0:00:27]} 4. Bd3 {[%emt 0:00:04]} Bd6 {[%emt 0:00:35]} 5. Nf3 {[%emt 0:00:07]} Nf6 {[%emt 0:00:13]} 6. O-O {[%emt 0:00:26]} O-O {[%emt 0:00:09]} 7. Bg5 {[%emt 0:00:09]} h6 {[%emt 0:00:16]} 8. Bh4 {[%emt 0:00:07]} Bg4 {[%emt 0:00:10]} 9. Nc3 {[%emt 0:00:11]} c6 {[%emt 0:00:16]} 10. h3 {[%emt 0:00:06]} Bh5 {[%emt 0:00:23]} 11. Re1 {[%emt 0:00:54]} Nbd7 {[%emt 0:00:16]} 12. Be2 {[%emt 0:03:40]} Qc7 {[%emt 0:01:08]} 13. Nd2 {[%emt 0:04:24]} Bxe2 {[%emt 0:04:29]} 14. Nxe2 {[%emt 0:02:29]} Rfe8 {[%emt 0:00:19]} 15. Bg3 {[%emt 0:01:49]} Re7 {[%emt 0:02:02]} 16. Bxd6 {[%emt 0:00:52]} Qxd6 {[%emt 0:00:38]} 17. Ng3 {[%emt 0:01:00]} Rxe1+ {[%emt 0:02:27]} 18. Qxe1 {[%emt 0:00:10]} Re8 {[%emt 0:00:14]} 19. Qf1 {[%emt 0:00:54]} Qb4 {[%emt 0:01:26]} 20. Nb3 {[%emt 0:00:20]} a5 {[%emt 0:03:15]} 21. c3 {[%emt 0:06:45]} Qb6 {[%emt 0:00:00]} 22. Rb1 {[%emt 0:01:26]} Ne4 {[%emt 0:00:30]} 23. Nxe4 {[%emt 0:02:49]} Rxe4 {[%emt 0:00:36]} 24. Qd3 {[%emt 0:01:36]} Nf6 {[%emt 0:01:11]} 25. Nc5 {[%emt 0:01:05]} Re7 {[%emt 0:00:20]} 26. Qf5 {[%emt 0:05:19]} Qc7 {[%emt 0:01:41]} 27. b4 {[%emt 0:01:35]} axb4 {[%emt 0:00:54]} 28. Rxb4 {[%emt 0:01:26]} Re1# {[%emt 0:02:40]} 0-1

[Event "GER-ch Youth-U10 2022"]
[Site "Willingen"]
[Date "2022.06.09"]
[Round "8.22"]
[White "Lanert, Theodor"]
[Black "Andersen, Jonatan M"]
[Result "1-0"]
[ECO "C50"]
[WhiteElo "1306"]
[BlackElo "1857"]
[Annotator "NA RC COMBH"]
[PlyCount "133"]
[EventDate "2022.06.05"]
[EventType "swiss"]
[EventRounds "11"]
[EventCountry "GER"]
[SourceTitle "playchess.com"]
[Source "ChessBase"]
[SourceQuality "1"]
[TimeControl "40/4500+30:900+30"]

1. e4 {[%emt 0:01:03]} e5 {[%emt 0:00:07]} 2. Nf3 {[%emt 0:00:06]} Nc6 {[%emt 0:00:09]} 3. Bc4 {[%emt 0:00:10]} Be7 {[%emt 0:00:07]} 4. O-O {[%emt 0:00:08]} Nf6 {[%emt 0:00:03]} 5. d4 {[%emt 0:00:08]} exd4 {[%emt 0:00:08]} 6. Re1 {[%emt 0:00:09]} d6 {[%emt 0:01:02]} 7. Nxd4 {[%emt 0:00:30]} O-O {[%emt 0:00:21]} 8. Nc3 {[%emt 0:02:00]} Ne5 {[%emt 0:01:23]} 9. Bb3 {[%emt 0:00:19]} Ng6 {[%emt 0:00:37]} 10. h3 {[%emt 0:01:15]} a6 {[%emt 0:03:21]} 11. Bg5 {[%emt 0:03:31]} c5 {[%emt 0:02:43]} 12. Nf3 {[%emt 0:01:23]} b5 {[%emt 0:00:45]} 13. a4 {[%emt 0:04:23]} b4 {[%emt 0:00:10]} 14. Ne2 {[%emt 0:02:17]} Nxe4 {[%emt 0:01:52]} 15. Bxe7 {[%emt 0:01:33]} Nxe7 {[%emt 0:00:15]} 16. Bd5 {[%emt 0:00:22]} Nxd5 {[%emt 0:01:30]} 17. Qxd5 {[%emt 0:00:07]} Qc7 {[%emt 0:03:18]} 18. Qxe4 {[%emt 0:00:29]} Bb7 {[%emt 0:00:19]} 19. Qg4 {[%emt 0:00:10]} f5 {[%emt 0:00:42]} 20. Qf4 {[%emt 0:00:32]} h6 {[%emt 0:00:23]} 21. Rad1 {[%emt 0:00:15]} Rad8 {[%emt 0:00:21]} 22. c4 {[%emt 0:01:22]} g5 {[%emt 0:00:31]} 23. Qe3 {[%emt 0:02:07]} Rde8 {[%emt 0:00:22]} 24. Qd3 {[%emt 0:00:17]} Rd8 {[%emt 0:00:26]} 25. Ng3 {[%emt 0:01:16]} Qf7 {[%emt 0:02:42]} 26. Re2 {[%emt 0:00:30]} f4 {[%emt 0:00:42]} 27. Nh1 {[%emt 0:02:06]} Qf6 {[%emt 0:02:08]} 28. Rde1 {[%emt 0:01:14]} Rd7 {[%emt 0:00:41]} 29. b3 {[%emt 0:01:07]} h5 {[%emt 0:00:22]} 30. Re6 {[%emt 0:00:14]} Qf5 {[%emt 0:00:55]} 31. Qxf5 {[%emt 0:00:29]} Rxf5 {[%emt 0:00:09]} 32. Re8+ {[%emt 0:00:04]} Kf7 {[%emt 0:01:03]} 33. Rh8 {[%emt 0:00:49]} Kg6 {[%emt 0:00:09]} 34. Re6+ {[%emt 0:00:17]} Kf7 {[%emt 0:00:35]} 35. Ree8 {[%emt 0:00:36]} Kg6 {[%emt 0:01:18]} 36. Reg8+ {[%emt 0:00:24]} Rg7 {[%emt 0:00:19]} 37. Rxg7+ {[%emt 0:00:20]} Kxg7 {[%emt 0:00:10]} 38. Rd8 {[%emt 0:00:34]} Bxf3 {[%emt 0:00:12]} 39. gxf3 {[%emt 0:00:22]} Rf6 {[%emt 0:00:25]} 40. Ra8 {[%emt 0:00:22]} Re6 {[%emt 0:00:34]} 41. Rxa6 {[%emt 0:15:12]} Kf6 {[%emt 0:15:13]} 42. Kf1 {[%emt 0:00:14]} h4 {[%emt 0:00:07]} 43. Ra8 {[%emt 0:00:18]} Ke5 {[%emt 0:00:15]} 44. Ke2 {[%emt 0:00:05]} Kd4+ {[%emt 0:00:11]} 45. Kd2 {[%emt 0:00:06]} d5 {[%emt 0:00:41]} 46. Rd8 {[%emt 0:00:08]} Re5 {[%emt 0:01:09]} 47. Rxd5+ {[%emt 0:00:13]} Rxd5 {[%emt 0:00:04]} 48. cxd5 {[%emt 0:00:06]} Kxd5 {[%emt 0:00:48]} 49. Kd3 {[%emt 0:00:27]} Kc6 {[%emt 0:00:15]} 50. Kc4 {[%emt 0:00:05]} Kb6 {[%emt 0:00:09]} 51. a5+ {[%emt 0:00:06]} Kxa5 {[%emt 0:00:07]} 52. Kxc5 {[%emt 0:00:06]} Ka6 {[%emt 0:00:44]} 53. Kxb4 {[%emt 0:00:33]} Kb6 {[%emt 0:00:09]} 54. Kc4 {[%emt 0:00:05]} Kc6 {[%emt 0:00:06]} 55. b4 {[%emt 0:00:05]} Kd6 {[%emt 0:00:09]} 56. b5 {[%emt 0:00:06]} Kc7 {[%emt 0:00:11]} 57. Kc5 {[%emt 0:00:06]} Kb7 {[%emt 0:00:05]} 58. b6 {[%emt 0:00:10]} Kb8 {[%emt 0:00:09]} 59. Kc6 {[%emt 0:00:07]} Kc8 {[%emt 0:00:04]} 60. b7+ {[%emt 0:00:06]} Kb8 {[%emt 0:00:24]} 61. Kb6 {[%emt 0:00:05]} g4 {[%emt 0:00:15]} 62. fxg4 {[%emt 0:00:02]} f3 {[%emt 0:00:12]} 63. Kc6 {[%emt 0:00:05]} Ka7 {[%emt 0:00:04]} 64. Kc7 {[%emt 0:00:03]} Ka6 {[%emt 0:00:06]} 65. b8=Q {[%emt 0:00:21]} Ka5 66. Qb3 {[%emt 0:00:08]} Ka6 {[%emt 0:00:47]} 67. Qb6# {[%emt 0:00:03]} 1-0

[Event "GER-ch Youth-U10 2022"]
[Site "Willingen"]
[Date "2022.06.09"]
[Round "8.23"]
[White "Menke, Raphael Wilhelm"]
[Black "Rinke, Alexander"]
[Result "1-0"]
[ECO "B18"]
[WhiteElo "1212"]
[BlackElo "1292"]
[Annotator "NA RC COMBH"]
[PlyCount "57"]
[EventDate "2022.06.05"]
[EventType "swiss"]
[EventRounds "11"]
[EventCountry "GER"]
[SourceTitle "playchess.com"]
[Source "ChessBase"]
[SourceQuality "1"]
[TimeControl "40/4500+30:900+30"]

1. e4 {[%emt 0:00:01]} c6 {[%emt 0:00:07]} 2. d4 {[%emt 0:00:06]} d5 {[%emt 0:00:04]} 3. Nc3 {[%emt 0:00:08]} dxe4 {[%emt 0:00:07]} 4. Nxe4 {[%emt 0:00:09]} Bf5 {[%emt 0:00:06]} 5. Ng3 {[%emt 0:01:12]} Bg6 {[%emt 0:00:09]} 6. Nh3 {[%emt 0:00:25]} h6 {[%emt 0:02:21]} 7. Nf4 {[%emt 0:00:09]} Bh7 {[%emt 0:00:11]} 8. Bc4 {[%emt 0:01:08]} Nf6 {[%emt 0:01:47]} 9. O-O {[%emt 0:01:14]} e6 {[%emt 0:00:19]} 10. Re1 {[%emt 0:00:42]} Be7 {[%emt 0:00:37]} 11. Bxe6 {[%emt 0:01:10]} fxe6 {[%emt 0:00:17]} 12. Nxe6 {[%emt 0:00:08]} Qd7 {[%emt 0:14:19]} 13. Nxg7+ {[%emt 0:06:45]} Kf7 {[%emt 0:00:18]} 14. N3h5 {[%emt 0:01:02]} Bg6 {[%emt 0:03:03]} 15. Qe2 {[%emt 0:04:25]} Bb4 {[%emt 0:04:06]} 16. c3 {[%emt 0:07:32]} Bd6 {[%emt 0:01:11]} 17. Qf3 {[%emt 0:05:17]} Bxh5 {[%emt 0:02:00]} 18. Nxh5 {[%emt 0:01:05]} Be7 {[%emt 0:00:13]} 19. Re3 {[%emt 0:05:09]} Qg4 {[%emt 0:00:38]} 20. Rxe7+ {[%emt 0:03:55]} Kxe7 {[%emt 0:00:22]} 21. Qxf6+ {[%emt 0:00:32]} Kd7 {[%emt 0:00:15]} 22. Qf7+ {[%emt 0:00:55]} Kc8 {[%emt 0:02:38]} 23. Bf4 {[%emt 0:02:13]} Qd7 {[%emt 0:02:36]} 24. Qg6 {[%emt 0:02:17]} Qh7 {[%emt 0:03:04]} 25. Qe6+ {[%emt 0:06:12]} Qd7 {[%emt 0:00:35]} 26. Re1 {[%emt 0:03:28]} Qxe6 {[%emt 0:01:36]} 27. Rxe6 {[%emt 0:00:18]} Kd7 {[%emt 0:00:42]} 28. Rg6 {[%emt 0:01:26]} Re8 {[%emt 0:00:28]} 29. Nf6+ {[%emt 0:00:14]} 1-0

[Event "GER-ch Youth-U10 2022"]
[Site "Willingen"]
[Date "2022.06.09"]
[Round "8.25"]
[White "Leonhardt, Max"]
[Black "Khanbekyan, Aram"]
[Result "1-0"]
[ECO "E12"]
[WhiteElo "1114"]
[BlackElo "998"]
[Annotator "NA RC COMBH"]
[PlyCount "39"]
[EventDate "2022.06.05"]
[EventType "swiss"]
[EventRounds "11"]
[EventCountry "GER"]
[SourceTitle "playchess.com"]
[Source "ChessBase"]
[SourceQuality "1"]
[TimeControl "40/4500+30:900+30"]

1. d4 {[%emt 0:00:02]} Nf6 {[%emt 0:00:07]} 2. c4 {[%emt 0:00:14]} e6 {[%emt 0:00:12]} 3. Nc3 {[%emt 0:00:10]} Bb4 {[%emt 0:00:13]} 4. Qc2 {[%emt 0:00:10]} b6 {[%emt 0:01:25]} 5. Nf3 {[%emt 0:00:14]} Bb7 {[%emt 0:00:29]} 6. Bg5 {[%emt 0:00:21]} O-O {[%emt 0:00:42]} 7. e3 {[%emt 0:00:28]} d6 {[%emt 0:01:36]} 8. Bd3 {[%emt 0:00:26]} g6 {[%emt 0:04:25]} 9. O-O-O {[%emt 0:00:16]} Bxc3 {[%emt 0:00:32]} 10. Qxc3 {[%emt 0:00:20]} Nbd7 {[%emt 0:01:04]} 11. Rdg1 {[%emt 0:01:04]} c5 {[%emt 0:01:01]} 12. h4 {[%emt 0:01:12]} h5 {[%emt 0:01:40]} 13. Rh3 {[%emt 0:01:24]} a5 {[%emt 0:05:38]} 14. Qc2 {[%emt 0:01:29]} a4 {[%emt 0:02:12]} 15. Bxg6 {[%emt 0:01:40]} fxg6 {[%emt 0:04:04]} 16. Qxg6+ {[%emt 0:00:46]} Kh8 {[%emt 0:00:20]} 17. Bh6 {[%emt 0:02:42]} Rg8 {[%emt 0:04:43]} 18. Qc2 {[%emt 0:00:41]} Ng4 {[%emt 0:04:52]} 19. Ng5 {[%emt 0:00:29]} Ndf6 {[%emt 0:01:00]} 20. Nf7# {[%emt 0:00:55]} 1-0

[Event "GER-ch Youth-U10 2022"]
[Site "Willingen"]
[Date "2022.06.09"]
[Round "8.27"]
[White "Wetzig, Karl Anton"]
[Black "Li, Joshua"]
[Result "0-1"]
[ECO "B45"]
[WhiteElo "884"]
[BlackElo "1599"]
[Annotator "NA RC COMBH"]
[PlyCount "28"]
[EventDate "2022.06.05"]
[EventType "swiss"]
[EventRounds "11"]
[EventCountry "GER"]
[SourceTitle "playchess.com"]
[Source "ChessBase"]
[SourceQuality "1"]
[TimeControl "40/4500+30:900+30"]

1. e4 {[%emt 0:00:03]} c5 {[%emt 0:00:03]} 2. Nf3 {[%emt 0:00:10]} e6 {[%emt 0:00:05]} 3. Nc3 {[%emt 0:01:06]} Nc6 {[%emt 0:00:21]} 4. d4 {[%emt 0:00:13]} cxd4 {[%emt 0:00:07]} 5. Nxd4 {[%emt 0:00:08]} Nf6 {[%emt 0:00:09]} 6. Nxc6 {[%emt 0:00:23]} bxc6 {[%emt 0:02:11]} 7. e5 {[%emt 0:01:12]} Nd5 {[%emt 0:01:04]} 8. Nxd5 {[%emt 0:00:48]} exd5 {[%emt 0:01:17]} 9. Bd3 {[%emt 0:02:52]} Qc7 {[%emt 0:01:32]} 10. Qe2 {[%emt 0:00:23]} Bc5 {[%emt 0:07:38]} 11. O-O {[%emt 0:03:13]} O-O {[%emt 0:03:33]} 12. Qg4 {[%emt 0:02:01]} Qxe5 {[%emt 0:00:00]} 13. Re1 {[%emt 0:00:21]} Qxe1+ {[%emt 0:00:15]} 14. Bf1 {[%emt 0:00:22]} Qxf2+ {[%emt 0:00:09]} 0-1

[Event "GER-ch Youth-U10 2022"]
[Site "Willingen"]
[Date "2022.06.10"]
[Round "9.1"]
[White "Shen, Tingrui"]
[Black "Nezhyvenko, Mykhaylo"]
[Result "0-1"]
[ECO "B47"]
[WhiteElo "1621"]
[BlackElo "1488"]
[Annotator "NA RC COMBH"]
[PlyCount "62"]
[EventDate "2022.06.05"]
[EventType "swiss"]
[EventRounds "11"]
[EventCountry "GER"]
[SourceTitle "playchess.com"]
[Source "ChessBase"]
[SourceQuality "1"]
[TimeControl "40/4500+30:900+30"]

1. e4 {[%emt 0:00:41]} c5 {[%emt 0:00:09]} 2. Nc3 {[%emt 0:00:29]} Nc6 {[%emt 0:00:11]} 3. Nge2 {[%emt 0:00:53]} e6 {[%emt 0:00:14]} 4. d4 {[%emt 0:00:49]} cxd4 {[%emt 0:00:02]} 5. Nxd4 {[%emt 0:00:15]} Qc7 {[%emt 0:00:03]} 6. g3 {[%emt 0:01:23]} a6 {[%emt 0:00:22]} 7. Bg2 {[%emt 0:02:00]} Nf6 {[%emt 0:00:13]} 8. O-O {[%emt 0:01:14]} Be7 {[%emt 0:00:28]} 9. Re1 {[%emt 0:03:45]} O-O {[%emt 0:06:50]} 10. Nxc6 {[%emt 0:04:42]} dxc6 {[%emt 0:00:59]} 11. e5 {[%emt 0:01:57]} Rd8 {[%emt 0:00:20]} 12. Qf3 {[%emt 0:01:01]} Nd5 {[%emt 0:00:10]} 13. h4 {[%emt 0:00:58]} Bd7 {[%emt 0:04:54]} 14. Bg5 {[%emt 0:15:55]} Bxg5 {[%emt 0:03:08]} 15. hxg5 {[%emt 0:00:34]} Ne7 {[%emt 0:02:02]} 16. Qh5 {[%emt 0:25:42]} Be8 {[%emt 0:01:43]} 17. Be4 {[%emt 0:02:41]} f5 {[%emt 0:00:29]} 18. Qh3 {[%emt 0:04:41]} fxe4 {[%emt 0:00:02]} 19. Qxe6+ {[%emt 0:03:14]} Bf7 {[%emt 0:00:04]} 20. Qh3 {[%emt 0:01:24]} Qxe5 {[%emt 0:01:04]} 21. Nxe4 {[%emt 0:04:22]} Qf5 {[%emt 0:02:17]} 22. g4 {[%emt 0:03:26]} Qf4 {[%emt 0:00:20]} 23. Ng3 {[%emt 0:02:35]} Qxg5 {[%emt 0:01:17]} 24. Rad1 {[%emt 0:01:10]} Rxd1 {[%emt 0:00:15]} 25. Rxd1 {[%emt 0:00:08]} Nd5 {[%emt 0:00:18]} 26. c4 {[%emt 0:01:29]} Nf4 {[%emt 0:00:08]} 27. Qf1 {[%emt 0:00:17]} Qxg4 {[%emt 0:00:09]} 28. Re1 {[%emt 0:00:38]} Kh8 {[%emt 0:00:21]} 29. Re4 {[%emt 0:00:32]} Bg6 {[%emt 0:00:23]} 30. Re7 {[%emt 0:00:25]} Rf8 {[%emt 0:00:12]} 31. Rxb7 {[%emt 0:00:45]} h5 {[%emt 0:00:18]} 0-1